fUSD/lending_fUSD_20240614
["ID","MTS","AMOUNT","RATE_DAILY","PERIOD"]
[329419677,1718328753388,-2460.17,0.00026301,3]
[329419678,1718328753405,-3852.04,0.00026301,3]
[329419679,1718328753422,-4640.65,0.00026301,3]
[329419680,1718328753433,-855.86,0.00026301,3]
[329419681,1718328753448,-1149.69,0.00026301,3]
[329419682,1718328753467,-781.38,0.00026301,3]
[329419683,1718328753480,-2477.54,0.00026301,3]
[329419684,1718328753509,-2739.81,0.00026301,3]
[329419685,1718328753527,-500.0,0.00026301,3]
[329419686,1718328753543,-22917.63,0.00026301,3]
[329419687,1718328753572,-2363.24,0.00026301,3]
[329419688,1718328753589,-801.82,0.00026301,3]
[329419689,1718328753601,-1182.53,0.00026301,3]
[329419690,1718328753613,-500.0,0.00026301,3]
[329419691,1718328753625,-1037.71,0.00026301,3]
[329419692,1718328753647,-2489.52,0.00026301,3]
[329419693,1718328753660,-671.04,0.00026301,3]
[329419694,1718328753674,-2448.61,0.00026301,3]
[329419695,1718328753686,-709.17,0.00026301,3]
[329419696,1718328753698,-2250.55,0.00026301,3]
[329419697,1718328753720,-663.02,0.00026301,3]
[329419698,1718328753732,-2614.62,0.00026301,3]
[329419699,1718328753761,-500.0,0.00026301,3]
[329419700,1718328753777,-560.42,0.00026301,3]
[329419701,1718328753792,-1131.25,0.00026301,3]
[329419702,1718328753805,-173.32469001,0.00026301,3]
[329419703,1718328753824,-500.0,0.00026301,3]
[329419704,1718328753844,-500.0,0.00026301,3]
[329419705,1718328753860,-3845.21,0.00026301,3]
[329419706,1718328753873,-967.09,0.00026301,3]
[329419707,1718328753889,-500.0,0.00026301,3]
[329419708,1718328753907,-3200.03,0.00026301,3]
[329419709,1718328753922,-250.0,0.00026301,3]
[329419710,1718328753946,-500.0,0.00026301,3]
[329419711,1718328753967,-714.39,0.00026301,3]
[329419712,1718328753983,-2771.64,0.00026301,3]
[329419713,1718328753996,-6182.51,0.00026301,3]
[329419714,1718328754014,-518.65850744,0.00026301,3]
[329419715,1718328754028,-1117.03,0.00026301,3]
[329419716,1718328754043,-500.0,0.00026301,3]
[329419717,1718328754055,-818.88,0.00026301,3]
[329419718,1718328754073,-500.0,0.00026301,3]
[329419719,1718328754091,-13361.61,0.00026301,3]
[329419720,1718328754102,-1181.16,0.00026301,3]
[329419721,1718328754115,-500.0,0.00026301,3]
[329419722,1718328754132,-500.0,0.00026301,3]
[329419723,1718328754149,-740.73,0.00026301,3]
[329419724,1718328754163,-500.0,0.00026301,3]
[329419725,1718328754176,-584.95,0.00026301,3]
[329419726,1718328754187,-4766.45,0.00026301,3]
[329419727,1718328754214,-932.3,0.00026301,3]
[329419728,1718328754226,-2000.0,0.00026301,3]
[329419729,1718328754241,-860.82366226,0.00026326,2]
[329419730,1718328754254,-324.13611751,0.00026365,2]
[329419731,1718328754265,-611.0,0.000264,2]
[329419732,1718328754276,-1354.12,0.000264,2]
[329419733,1718328754287,-1037.09,0.000264,2]
[329419734,1718328754299,-972.0,0.000264,10]
[329419735,1718328754312,-691.0,0.00026438,2]
[329419736,1718328754327,-1223.188309,0.00026514,2]
[329419737,1718328754338,-1010.14467585,0.00026528,2]
[329419738,1718328754357,-500.0,0.00026575,3]
[329419739,1718328754375,-500.0,0.00026575,3]
[329419740,1718328754390,-500.0,0.00026575,3]
[329419741,1718328754408,-520.6007909,0.00026575,3]
[329419742,1718328754426,-509.23375338,0.00026575,3]
[329419743,1718328754445,-500.0,0.00026575,3]
[329419744,1718328754464,-500.0,0.00026575,3]
[329419745,1718328754480,-500.0,0.00026575,3]
[329419746,1718328754502,-500.0,0.00026575,3]
[329419747,1718328754520,-500.0,0.00026575,3]
[329419748,1718328754539,-500.0,0.00026575,3]
[329419749,1718328754553,-413.23,0.00026575,3]
[329419750,1718328754578,-500.0,0.00026575,3]
[329419751,1718328754599,-535.98,0.00026575,3]
[329419752,1718328754619,-607.62,0.00026575,3]
[329419753,1718328754636,-500.0,0.00026575,3]
[329419754,1718328754654,-500.0,0.00026575,3]
[329419755,1718328754685,-500.0,0.00026575,3]
[329419756,1718328754704,-539.14,0.00026575,3]
[329419757,1718328754743,-539.62,0.00026575,3]
[329419758,1718328754759,-500.0,0.00026575,3]
[329419759,1718328754789,-804.49,0.00026575,3]
[329419760,1718328754825,-500.0,0.00026575,3]
[329419761,1718328754854,-500.0,0.00026575,3]
[329419762,1718328754898,-572.62,0.00026575,3]
[329419763,1718328754918,-500.0,0.00026575,3]
[329419764,1718328754968,-500.0,0.00026575,3]
[329419765,1718328754983,-774.54,0.00026575,3]
[329419766,1718328754997,-986.18,0.00026575,3]
[329419767,1718328755014,-500.0,0.00026575,3]
[329419768,1718328755036,-248.66,0.00026575,3]
[329419769,1718328755058,-1157.92,0.00026575,3]
[329419770,1718328755084,-500.0,0.00026575,3]
[329419771,1718328755105,-500.0,0.00026575,3]
[329419772,1718328755122,-500.0,0.00026575,3]
[329419773,1718328755170,-500.0,0.00026575,3]
[329419774,1718328755190,-500.0,0.00026575,3]
[329419775,1718328755219,-593.85112217,0.00026575,3]
[329419776,1718328755247,-500.0,0.00026575,3]
[329419777,1718328755288,-500.0,0.00026575,3]
[329419778,1718328755306,-154.51,0.00026575,3]
[329419779,1718328755329,-611.61,0.00026575,3]
[329419780,1718328755362,-583.88,0.00026575,3]
[329419781,1718328755378,-500.0,0.00026575,3]
[329419782,1718328755411,-500.0,0.00026575,3]
[329419783,1718328755439,-500.0,0.00026575,3]
[329419784,1718328755465,-548.53,0.00026575,3]
[329419785,1718328755519,-500.0,0.00026575,3]
[329419786,1718328755532,-692.1,0.00026575,3]
[329419787,1718328755560,-634.92,0.00026575,3]
[329419788,1718328755577,-588.02,0.00026575,3]
[329419789,1718328755593,-500.0,0.00026575,3]
[329419790,1718328755605,-500.0,0.00026575,3]
[329419791,1718328755627,-660.68,0.00026575,3]
[329419792,1718328755640,-960.66,0.00026575,3]
[329419793,1718328755654,-500.0,0.00026575,3]
[329419794,1718328755669,-1302.28,0.00026575,3]
[329419795,1718328755680,-500.0,0.00026575,3]
[329419796,1718328755716,-500.0,0.00026575,3]
[329419797,1718328755729,-617.28,0.00026575,3]
[329419798,1718328755752,-509.53650489,0.00026575,3]
[329419799,1718328755765,-565.86,0.00026575,3]
[329419800,1718328755778,-500.0,0.00026575,3]
[329419801,1718328755790,-500.0,0.00026575,3]
[329419802,1718328755804,-500.0,0.00026575,3]
[329419803,1718328755820,-883.98,0.00026575,3]
[329419804,1718328755835,-528.45,0.00026575,3]
[329419805,1718328755865,-742.73,0.00026575,3]
[329419806,1718328755878,-500.0,0.00026575,3]
[329419807,1718328755900,-500.0,0.00026575,3]
[329419808,1718328755913,-500.0,0.00026575,3]
[329419809,1718328755927,-500.0,0.00026575,3]
[329419810,1718328755939,-500.0,0.00026575,3]
[329419811,1718328755949,-337.44,0.00026575,3]
[329419812,1718328755964,-598.84,0.00026575,3]
[329419813,1718328755985,-500.0,0.00026575,3]
[329419814,1718328756002,-500.0,0.00026575,3]
[329419815,1718328756020,-500.0,0.00026575,3]
[329419816,1718328756050,-500.0,0.00026575,3]
[329419817,1718328756068,-500.0,0.00026575,3]
[329419818,1718328756079,-500.0,0.00026575,3]
[329419819,1718328756093,-719.93,0.00026575,3]
[329419820,1718328756107,-261.36,0.00026575,3]
[329419821,1718328756119,-500.0,0.00026575,3]
[329419822,1718328756134,-500.0,0.00026575,3]
[329419823,1718328756148,-500.0,0.00026575,3]
[329419824,1718328756166,-500.0,0.00026575,3]
[329419825,1718328756179,-500.0,0.00026575,3]
[329419826,1718328756194,-500.0,0.00026575,3]
[329419827,1718328756230,-500.0,0.00026575,3]
[329419828,1718328756256,-997.89,0.00026575,3]
[329419829,1718328756271,-500.0,0.00026575,3]
[329419830,1718328756287,-500.0,0.00026575,3]
[329419831,1718328756317,-1232.27,0.00026575,3]
[329419832,1718328756346,-500.0,0.00026575,3]
[329419833,1718328756378,-500.0,0.00026575,3]
[329419834,1718328756395,-500.0,0.00026575,3]
[329419835,1718328756415,-500.0,0.00026575,3]
[329419836,1718328756616,-695.7,0.00026575,3]
[329419837,1718328756632,-545.28,0.00026575,3]
[329419838,1718328756643,-552.3,0.00026575,3]
[329419839,1718328756653,-500.0,0.00026575,3]
[329419840,1718328756677,-500.0,0.00026575,3]
[329419841,1718328756703,-500.0,0.00026575,3]
[329419842,1718328756732,-922.06,0.00026575,3]
[329419843,1718328756769,-1020.66,0.00026575,3]
[329419844,1718328756786,-500.0,0.00026575,3]
[329419845,1718328756831,-1333.56,0.00026575,3]
[329419846,1718328756845,-578.22,0.00026575,3]
[329419847,1718328756870,-500.0,0.00026575,3]
[329419848,1718328756895,-904.07,0.00026575,3]
[329419849,1718328756910,-556.85,0.00026575,3]
[329419850,1718328756928,-903.49,0.00026575,3]
[329419851,1718328756944,-500.0,0.00026575,3]
[329419852,1718328756976,-512.2,0.00026575,3]
[329419853,1718328757022,-1002.39,0.00026575,3]
[329419854,1718328757056,-738.2,0.00026575,3]
[329419855,1718328757104,-500.0,0.00026575,3]
[329419856,1718328757130,-500.0,0.00026575,3]
[329419857,1718328757169,-500.0,0.00026575,3]
[329419858,1718328757190,-798.44,0.00026575,3]
[329419859,1718328757220,-500.0,0.00026575,3]
[329419860,1718328757243,-262.1,0.00026575,3]
[329419861,1718328757273,-500.0,0.00026575,3]
[329419862,1718328757301,-500.0,0.00026575,3]
[329419863,1718328757356,-500.0,0.00026575,3]
[329419864,1718328757371,-591.59,0.00026575,3]
[329419865,1718328757388,-500.0,0.00026575,3]
[329419866,1718328757417,-659.35,0.00026575,3]
[329419867,1718328757451,-569.74,0.00026575,3]
[329419868,1718328757472,-621.41,0.00026575,3]
[329419869,1718328757523,-549.56,0.00026575,3]
[329419870,1718328757554,-630.44,0.00026575,3]
[329419871,1718328757570,-500.0,0.00026575,3]
[329419872,1718328757583,-250.56,0.00026575,3]
[329419873,1718328757595,-500.0,0.00026575,3]
[329419874,1718328757608,-500.0,0.00026575,3]
[329419875,1718328757634,-500.0,0.00026575,3]
[329419876,1718328757664,-2024.27,0.00026575,3]
[329419877,1718328757682,-550.31,0.00026575,3]
[329419878,1718328757778,-661.6,0.00026575,3]
[329419879,1718328757792,-593.37,0.00026575,3]
[329419880,1718328757804,-1051.97,0.00026575,3]
[329419881,1718328757818,-500.0,0.00026575,3]
[329419882,1718328757832,-2230.14,0.00026575,3]
[329419883,1718328757845,-560.51,0.00026575,3]
[329419884,1718328757878,-699.68,0.00026575,3]
[329419885,1718328757912,-1026.29,0.00026575,3]
[329419886,1718328757941,-6651.01,0.00026575,3]
[329419887,1718328757974,-500.0,0.00026575,3]
[329419888,1718328758009,-500.0,0.00026575,3]
[329419889,1718328758036,-905.81,0.00026575,3]
[329419890,1718328758050,-500.0,0.00026575,3]
[329419891,1718328758069,-3969.41,0.00026575,3]
[329419892,1718328758111,-807.05,0.00026575,3]
[329419893,1718328758127,-500.0,0.00026575,3]
[329419894,1718328758152,-2365.65,0.00026575,3]
[329419895,1718328758164,-500.0,0.00026575,3]
[329419896,1718328758185,-500.0,0.00026575,3]
[329419897,1718328758197,-593.15,0.00026575,3]
[329419898,1718328758210,-2105.93,0.00026575,3]
[329419899,1718328758223,-843.89,0.00026575,3]
[329419900,1718328758236,-500.0,0.00026575,3]
[329419901,1718328758248,-598.1,0.00026575,3]
[329419902,1718328758261,-7638.61,0.00026575,3]
[329419903,1718328758275,-3190.81,0.00026575,3]
[329419904,1718328758294,-3649.11,0.00026575,3]
[329419905,1718328758305,-699.16,0.00026575,3]
[329419906,1718328758320,-1217.69,0.00026575,3]
[329419907,1718328758333,-2721.15,0.00026575,3]
[329419908,1718328758345,-500.0,0.00026575,3]
[329419909,1718328758358,-500.0,0.00026575,3]
[329419910,1718328758372,-1011.07,0.00026575,3]
[329419911,1718328758384,-1346.53,0.00026575,3]
[329419912,1718328758399,-13586.59,0.00026575,3]
[329419913,1718328758410,-2862.08,0.00026575,3]
[329419914,1718328758424,-680.82,0.00026575,3]
[329419915,1718328758437,-2933.81,0.00026575,3]
[329419916,1718328758449,-761.51,0.00026575,3]
[329419917,1718328758462,-563.33,0.00026575,3]
[329419918,1718328758477,-2631.81,0.00026575,3]
[329419919,1718328758500,-1745.88,0.00026575,3]
[329419920,1718328758543,-500.0,0.00026575,3]
[329419921,1718328758570,-1902.96,0.00026575,3]
[329419922,1718328758599,-773.16,0.00026575,3]
[329419923,1718328758617,-2172.15,0.00026575,3]
[329419924,1718328758630,-1825.98,0.00026575,3]
[329419925,1718328758672,-500.0,0.00026575,3]
[329419926,1718328758684,-679.92,0.00026575,3]
[329419927,1718328758700,-986.43,0.00026575,3]
[329419928,1718328758724,-402.75,0.00026575,3]
[329419929,1718328758741,-1829.1,0.00026575,3]
[329419930,1718328758771,-1832.39,0.00026575,3]
[329419931,1718328758784,-1082.5,0.00026575,3]
[329419932,1718328758798,-638.87,0.00026575,3]
[329419933,1718328758822,-2157.56,0.00026575,3]
[329419934,1718328758836,-906.62,0.00026575,3]
[329419935,1718328758854,-500.0,0.00026575,3]
[329419936,1718328758868,-690.46,0.00026575,3]
[329419937,1718328758885,-500.0,0.00026575,3]
[329419938,1718328758920,-988.9,0.00026575,3]
[329419939,1718328758956,-731.35,0.00026575,3]
[329419940,1718328758988,-27287.16,0.00026575,3]
[329419941,1718328759005,-613.74,0.00026575,3]
[329419942,1718328759052,-500.0,0.00026575,3]
[329419943,1718328759071,-500.0,0.00026575,3]
[329419944,1718328759085,-500.0,0.00026575,3]
[329419945,1718328759100,-910.96,0.00026575,3]
[329419946,1718328759124,-500.0,0.00026575,3]
[329419947,1718328759153,-6932.08,0.00026575,3]
[329419948,1718328759169,-974.92,0.00026575,3]
[329419949,1718328759199,-2616.08,0.00026575,3]
[329419950,1718328759222,-817.09,0.00026575,3]
[329419951,1718328759248,-1080.82,0.00026575,3]
[329419952,1718328759265,-709.94,0.00026575,3]
[329419953,1718328759297,-500.0,0.00026575,3]
[329419954,1718328759321,-1643.14,0.00026575,3]
[329419955,1718328759336,-6948.28,0.00026575,3]
[329419956,1718328759355,-2321.35,0.00026575,3]
[329419957,1718328759378,-2845.46,0.00026575,3]
[329419958,1718328759407,-500.0,0.00026575,3]
[329419959,1718328759428,-1414.89,0.00026575,3]
[329419960,1718328759468,-500.0,0.00026575,3]
[329419961,1718328759514,-13659.59,0.00026575,3]
[329419962,1718328759531,-1408.71,0.00026575,3]
[329419963,1718328759560,-1393.56,0.00026575,3]
[329419964,1718328759596,-2259.66,0.00026575,3]
[329419965,1718328759617,-1111.31,0.00026575,3]
[329419966,1718328759643,-500.0,0.00026575,3]
[329419967,1718328759663,-500.0,0.00026575,3]
[329419968,1718328759691,-500.0,0.00026575,3]
[329419969,1718328759706,-394.76888228,0.00026575,3]
[329419970,1718328759719,-10075.29,0.00026575,3]
[329419971,1718328759734,-500.0,0.00026575,3]
[329419972,1718328759775,-500.0,0.00026575,3]
[329419973,1718328759800,-943.27,0.00026575,3]
[329419974,1718328759813,-3909.82,0.00026575,3]
[329419975,1718328759869,-1168.64,0.00026575,3]
[329419976,1718328759881,-1483.04,0.00026575,3]
[329419977,1718328759893,-500.0,0.00026575,3]
[329419978,1718328759906,-4875.13,0.00026575,3]
[329419979,1718328759933,-500.0,0.00026575,3]
[329419980,1718328759946,-500.0,0.00026575,3]
[329419981,1718328759962,-1146.24,0.00026575,3]
[329419982,1718328759975,-651.52,0.00026575,3]
[329419983,1718328759990,-500.0,0.00026575,3]
[329419984,1718328760004,-2483.67,0.00026575,3]
[329419985,1718328760026,-1056.72,0.00026575,3]
[329419986,1718328760049,-3759.26,0.00026575,3]
[329419987,1718328760068,-2980.85,0.00026575,3]
[329419988,1718328760081,-2040.13,0.00026575,3]
[329419989,1718328760094,-500.0,0.00026575,3]
[329419990,1718328760106,-949.95,0.00026575,3]
[329419991,1718328760124,-726.56,0.00026575,3]
[329419992,1718328760158,-1026.42,0.00026575,3]
[329419993,1718328760171,-1419.27,0.00026575,3]
[329419994,1718328760185,-1958.96,0.00026575,3]
[329419995,1718328760203,-500.0,0.00026575,3]
[329419996,1718328760240,-1457.15,0.00026575,3]
[329419997,1718328760258,-2166.24,0.00026575,3]
[329419998,1718328760272,-1585.82,0.00026575,3]
[329419999,1718328760285,-1164.45,0.00026575,3]
[329420000,1718328760298,-1370.89,0.00026575,3]
[329420001,1718328760318,-500.0,0.00026575,3]
[329420002,1718328760338,-500.0,0.00026575,3]
[329420003,1718328760352,-500.0,0.00026575,3]
[329420004,1718328760383,-979.9,0.00026575,3]
[329420005,1718328760398,-1246.72,0.00026575,3]
[329420006,1718328760428,-617.62,0.00026575,3]
[329420007,1718328760456,-1310.68,0.00026575,3]
[329420008,1718328760485,-976.37,0.00026575,3]
[329420009,1718328760520,-928.5,0.00026575,3]
[329420010,1718328760544,-500.0,0.00026575,3]
[329420011,1718328760559,-2479.24,0.00026575,3]
[329420012,1718328760601,-500.0,0.00026575,3]
[329420013,1718328760628,-1915.78,0.00026575,3]
[329420014,1718328760645,-9450.18,0.00026575,3]
[329420015,1718328760658,-758.88,0.00026575,3]
[329420016,1718328760705,-500.0,0.00026575,3]
[329420017,1718328760749,-500.0,0.00026575,3]
[329420018,1718328760764,-4571.95,0.00026575,3]
[329420019,1718328760781,-1010.1,0.00026575,3]
[329420020,1718328760820,-3729.75,0.00026575,3]
[329420021,1718328760836,-1160.9,0.00026575,3]
[329420022,1718328760868,-1442.54,0.00026575,3]
[329420023,1718328760881,-1291.17,0.00026575,3]
[329420024,1718328760893,-1437.83,0.00026575,3]
[329420025,1718328760908,-1078.82,0.00026575,3]
[329420026,1718328760922,-3179.39,0.00026575,3]
[329420027,1718328760940,-4644.91,0.00026575,3]
[329420028,1718328760955,-660.45,0.00026575,3]
[329420029,1718328760978,-500.0,0.00026575,3]
[329420030,1718328760999,-3968.87,0.00026575,3]
[329420031,1718328761030,-500.0,0.00026575,3]
[329420032,1718328761048,-1085.81,0.00026575,3]
[329420033,1718328761104,-2460.17,0.00026575,3]
[329420034,1718328761118,-3852.04,0.00026575,3]
[329420035,1718328761135,-4640.65,0.00026575,3]
[329420036,1718328761159,-855.86,0.00026575,3]
[329420037,1718328761184,-1149.69,0.00026575,3]
[329420038,1718328761197,-781.38,0.00026575,3]
[329420039,1718328761210,-2477.54,0.00026575,3]
[329420040,1718328761238,-2739.81,0.00026575,3]
[329420041,1718328761258,-500.0,0.00026575,3]
[329420042,1718328761283,-22917.63,0.00026575,3]
[329420043,1718328761309,-2363.24,0.00026575,3]
[329420044,1718328761356,-801.82,0.00026575,3]
[329420045,1718328761380,-1182.53,0.00026575,3]
[329420046,1718328761401,-500.0,0.00026575,3]
[329420047,1718328761464,-1037.71,0.00026575,3]
[329420048,1718328761497,-2489.52,0.00026575,3]
[329420049,1718328761510,-671.04,0.00026575,3]
[329420050,1718328761525,-2448.61,0.00026575,3]
[329420051,1718328761538,-709.17,0.00026575,3]
[329420052,1718328761556,-2250.55,0.00026575,3]
[329420053,1718328761577,-663.02,0.00026575,3]
[329420054,1718328761592,-2614.62,0.00026575,3]
[329420055,1718328761636,-500.0,0.00026575,3]
[329420056,1718328761649,-560.42,0.00026575,3]
[329420057,1718328761664,-500.0,0.00026575,3]
[329420058,1718328761678,-1131.25,0.00026575,3]
[329420059,1718328761692,-500.0,0.00026575,3]
[329420060,1718328761706,-3845.21,0.00026575,3]
[329420061,1718328761717,-967.09,0.00026575,3]
[329420062,1718328761730,-500.0,0.00026575,3]
[329420063,1718328761781,-3200.03,0.00026575,3]
[329420064,1718328761805,-250.0,0.00026575,3]
[329420065,1718328761821,-507.84903111,0.00026575,3]
[329420066,1718328761837,-714.39,0.00026575,3]
[329420067,1718328761856,-2771.64,0.00026575,3]
[329420068,1718328761877,-6182.51,0.00026575,3]
[329420069,1718328761912,-1117.03,0.00026575,3]
[329420070,1718328761922,-500.0,0.00026575,3]
[329420071,1718328761948,-818.88,0.00026575,3]
[329420072,1718328761969,-500.0,0.00026575,3]
[329420073,1718328761992,-1181.16,0.00026575,3]
[329420074,1718328762004,-13361.61,0.00026575,3]
[329420075,1718328762016,-506.54049892,0.00026575,3]
[329420076,1718328762028,-500.0,0.00026575,3]
[329420077,1718328762046,-500.0,0.00026575,3]
[329420078,1718328762057,-740.73,0.00026575,3]
[329420079,1718328762079,-584.95,0.00026575,3]
[329420080,1718328762096,-4766.45,0.00026575,3]
[329420081,1718328762115,-932.3,0.00026575,3]
[329420082,1718328762134,-150.0,0.000266,5]
[329420083,1718328762145,-204.0,0.0002667,2]
[329420084,1718328762158,-500.0,0.00026696,2]
[329420085,1718328762168,-2507.65973181,0.00026721,30]
[329420086,1718328762184,-860.82366226,0.00026836,2]
[329420087,1718328762195,-500.0,0.00026849,3]
[329420088,1718328762209,-646.04130057,0.00026849,3]
[329420089,1718328762225,-500.0,0.00026849,3]
[329420090,1718328762438,-500.0,0.00026849,3]
[329420091,1718328762454,-319.57,0.00026849,3]
[329420092,1718328762465,-500.0,0.00026849,3]
[329420093,1718328762477,-500.0,0.00026849,3]
[329420094,1718328762491,-500.0,0.00026849,3]
[329420095,1718328762518,-500.0,0.00026849,3]
[329420096,1718328762533,-500.0,0.00026849,3]
[329420097,1718328762554,-535.98,0.00026849,3]
[329420098,1718328762580,-500.0,0.00026849,3]
[329420099,1718328762592,-500.0,0.00026849,3]
[329420100,1718328762612,-500.0,0.00026849,3]
[329420101,1718328762628,-539.14,0.00026849,3]
[329420102,1718328762658,-539.62,0.00026849,3]
[329420103,1718328762678,-500.0,0.00026849,3]
[329420104,1718328762703,-804.49,0.00026849,3]
[329420105,1718328762714,-500.0,0.00026849,3]
[329420106,1718328762733,-500.0,0.00026849,3]
[329420107,1718328762748,-572.62,0.00026849,3]
[329420108,1718328762761,-500.0,0.00026849,3]
[329420109,1718328762784,-500.0,0.00026849,3]
[329420110,1718328762799,-774.54,0.00026849,3]
[329420111,1718328762830,-986.18,0.00026849,3]
[329420112,1718328762844,-500.0,0.00026849,3]
[329420113,1718328762871,-500.0,0.00026849,3]
[329420114,1718328762883,-500.0,0.00026849,3]
[329420115,1718328762908,-500.0,0.00026849,3]
[329420116,1718328762928,-169.64,0.00026849,3]
[329420117,1718328762940,-500.0,0.00026849,3]
[329420118,1718328762955,-500.0,0.00026849,3]
[329420119,1718328762969,-500.0,0.00026849,3]
[329420120,1718328762979,-611.61,0.00026849,3]
[329420121,1718328762990,-583.88,0.00026849,3]
[329420122,1718328763000,-500.0,0.00026849,3]
[329420123,1718328763011,-500.0,0.00026849,3]
[329420124,1718328763022,-500.0,0.00026849,3]
[329420125,1718328763033,-548.53,0.00026849,3]
[329420126,1718328763055,-500.0,0.00026849,3]
[329420127,1718328763076,-692.1,0.00026849,3]
[329420128,1718328763090,-634.92,0.00026849,3]
[329420129,1718328763103,-588.02,0.00026849,3]
[329420130,1718328763129,-500.0,0.00026849,3]
[329420131,1718328763154,-500.0,0.00026849,3]
[329420132,1718328763170,-660.68,0.00026849,3]
[329420133,1718328763188,-960.66,0.00026849,3]
[329420134,1718328763205,-500.0,0.00026849,3]
[329420135,1718328763239,-1302.28,0.00026849,3]
[329420136,1718328763251,-500.0,0.00026849,3]
[329420137,1718328763270,-601.44,0.00026849,3]
[329420138,1718328763281,-617.28,0.00026849,3]
[329420139,1718328763291,-565.86,0.00026849,3]
[329420140,1718328763305,-500.0,0.00026849,3]
[329420141,1718328763322,-500.0,0.00026849,3]
[329420142,1718328763333,-500.0,0.00026849,3]
[329420143,1718328763347,-883.98,0.00026849,3]
[329420144,1718328763357,-528.45,0.00026849,3]
[329420145,1718328763372,-742.73,0.00026849,3]
[329420146,1718328763383,-382.24,0.00026849,3]
[329420147,1718328763399,-500.0,0.00026849,3]
[329420148,1718328763424,-500.0,0.00026849,3]
[329420149,1718328763435,-500.0,0.00026849,3]
[329420150,1718328763463,-500.0,0.00026849,3]
[329420151,1718328763485,-598.84,0.00026849,3]
[329420152,1718328763497,-500.0,0.00026849,3]
[329420153,1718328763508,-359.04,0.00026849,3]
[329420154,1718328763524,-500.0,0.00026849,3]
[329420155,1718328763540,-643.18,0.00026849,3]
[329420156,1718328763551,-500.0,0.00026849,3]
[329420157,1718328763566,-500.0,0.00026849,3]
[329420158,1718328763578,-719.93,0.00026849,3]
[329420159,1718328763589,-500.0,0.00026849,3]
[329420160,1718328763601,-500.0,0.00026849,3]
[329420161,1718328763612,-500.0,0.00026849,3]
[329420162,1718328763632,-500.0,0.00026849,3]
[329420163,1718328763650,-502.78,0.00026849,3]
[329420164,1718328763665,-500.0,0.00026849,3]
[329420165,1718328763680,-500.0,0.00026849,3]
[329420166,1718328763693,-997.89,0.00026849,3]
[329420167,1718328763711,-500.0,0.00026849,3]
[329420168,1718328763725,-500.0,0.00026849,3]
[329420169,1718328763752,-1232.27,0.00026849,3]
[329420170,1718328763771,-500.0,0.00026849,3]
[329420171,1718328763783,-500.0,0.00026849,3]
[329420172,1718328763818,-500.0,0.00026849,3]
[329420173,1718328763844,-500.0,0.00026849,3]
[329420174,1718328763870,-695.7,0.00026849,3]
[329420175,1718328763882,-545.28,0.00026849,3]
[329420176,1718328763897,-552.3,0.00026849,3]